[Event "*** Titled Tuesday Blitz"]
[Site "Chess.com"]
[Date "2020.04.28"]
[Round "5"]
[White "ChelsieMonica"]
[Black "goofypenguin96"]
[Result "1/2-1/2"]
[WhiteElo "2333"]
[BlackElo "2171"]
[TimeControl "180+1"]
[EndTime "10:57:36 PDT"]
[Termination "Game drawn by repetition"]

1. c4 {[%clk 0:03:00.9]} 1... Nf6 {[%clk 0:02:59]} 2. Nc3 {[%clk 0:03:01]} 2...
e6 {[%clk 0:02:59.9]} 3. Nf3 {[%clk 0:03:00.5]} 3... c5 {[%clk 0:03:00]} 4. e3
{[%clk 0:03:01.4]} 4... b6 {[%clk 0:03:00.1]} 5. Be2 {[%clk 0:02:57.3]} 5... Bb7
{[%clk 0:03:00.1]} 6. O-O {[%clk 0:02:58.2]} 6... Be7 {[%clk 0:03:00.2]} 7. b3
{[%clk 0:02:58.5]} 7... O-O {[%clk 0:03:01.1]} 8. Bb2 {[%clk 0:02:58.6]} 8... d5
{[%clk 0:03:01.4]} 9. d4 {[%clk 0:02:58.8]} 9... cxd4 {[%clk 0:03:00.8]} 10.
Nxd4 {[%clk 0:02:58.2]} 10... Nc6 {[%clk 0:03:00.7]} 11. Nxc6 {[%clk 0:02:58.1]}
11... Bxc6 {[%clk 0:03:01.6]} 12. cxd5 {[%clk 0:02:58.4]} 12... Nxd5 {[%clk
0:03:01.9]} 13. Nxd5 {[%clk 0:02:58.6]} 13... Qxd5 {[%clk 0:03:02.1]} 14. Qxd5
{[%clk 0:02:53.3]} 14... Bxd5 {[%clk 0:03:03]} 15. Rac1 {[%clk 0:02:53.5]} 15...
Rac8 {[%clk 0:03:01.3]} 16. f3 {[%clk 0:02:51]} 16... Bc5 {[%clk 0:02:44]} 17.
Kf2 {[%clk 0:02:50.5]} 17... f6 {[%clk 0:02:44.1]} 18. Ba6 {[%clk 0:02:45.3]}
18... Rcd8 {[%clk 0:02:38.5]} 19. Rfd1 {[%clk 0:02:45.3]} 19... Kf7 {[%clk
0:02:37.4]} 20. Bd3 {[%clk 0:02:43.8]} 20... g6 {[%clk 0:02:33.4]} 21. Ke2
{[%clk 0:02:37.4]} 21... e5 {[%clk 0:02:31.9]} 22. Bb5 {[%clk 0:02:22]} 22...
Ke6 {[%clk 0:02:24.9]} 23. e4 {[%clk 0:02:05.3]} 23... Bb7 {[%clk 0:02:24.5]}
24. Bc4+ {[%clk 0:02:02.2]} 24... Ke7 {[%clk 0:02:24.4]} 25. a3 {[%clk
0:02:00.6]} 25... Rxd1 {[%clk 0:02:22.8]} 26. Rxd1 {[%clk 0:01:59.2]} 26... Rd8
{[%clk 0:02:22]} 27. Rxd8 {[%clk 0:01:56.1]} 27... Kxd8 {[%clk 0:02:22.9]} 28.
b4 {[%clk 0:01:56.6]} 28... Bd6 {[%clk 0:02:18.8]} 29. b5 {[%clk 0:01:52.4]}
29... Bc5 {[%clk 0:02:17.4]} 30. Bg8 {[%clk 0:01:50.1]} 30... Ke7 {[%clk
0:02:13.7]} 31. Kd3 {[%clk 0:01:37.2]} 31... Bc8 {[%clk 0:01:55.9]} 32. Bd5
{[%clk 0:01:33.1]} 32... a6 {[%clk 0:01:49.3]} 33. a4 {[%clk 0:01:32]} 33...
axb5 {[%clk 0:01:48.4]} 34. axb5 {[%clk 0:01:31.8]} 34... Bd7 {[%clk 0:01:44.8]}
35. Kc4 {[%clk 0:01:31.6]} 35... Kd6 {[%clk 0:01:39.6]} 36. h3 {[%clk
0:01:20.3]} 36... Be8 {[%clk 0:01:28.9]} 37. f4 {[%clk 0:01:17.6]} 37... Bd7
{[%clk 0:01:24.8]} 38. g4 {[%clk 0:01:10.2]} 38... h5 {[%clk 0:01:18.5]} 39. g5
{[%clk 0:00:54.6]} 39... fxg5 {[%clk 0:01:10.2]} 40. Bxe5+ {[%clk 0:00:52.6]}
40... Ke7 {[%clk 0:01:10.1]} 41. fxg5 {[%clk 0:00:52.6]} 41... Bxh3 {[%clk
0:01:10]} 42. Bf6+ {[%clk 0:00:52.2]} 42... Kf8 {[%clk 0:01:05.5]} 43. e5 {[%clk
0:00:51.6]} 43... Bf1+ {[%clk 0:01:04.7]} 44. Kb3 {[%clk 0:00:49]} 44... Bxb5
{[%clk 0:01:04.1]} 45. Be4 {[%clk 0:00:44.4]} 45... Be8 {[%clk 0:00:35.1]} 46.
e6 {[%clk 0:00:44.5]} 46... h4 {[%clk 0:00:32.7]} 47. Bg2 {[%clk 0:00:38.2]}
47... Bb5 {[%clk 0:00:26.6]} 48. Kc3 {[%clk 0:00:31.8]} 48... Be2 {[%clk
0:00:21.1]} 49. Bh3 {[%clk 0:00:25.5]} 49... b5 {[%clk 0:00:16.7]} 50. Kd2
{[%clk 0:00:23.4]} 50... Bc4 {[%clk 0:00:09.4]} 51. Kc3 {[%clk 0:00:23.7]} 51...
Be2 {[%clk 0:00:09.1]} 52. Kb3 {[%clk 0:00:23.6]} 52... Bc4+ {[%clk 0:00:07.9]}
53. Kc3 {[%clk 0:00:23.5]} 53... Ke8 {[%clk 0:00:08]} 54. Kc2 {[%clk 0:00:22.2]}
54... Bd5 {[%clk 0:00:08.2]} 55. Kc3 {[%clk 0:00:21.1]} 55... Be4 {[%clk
0:00:08.3]} 56. Kb3 {[%clk 0:00:20.5]} 56... Bf5 {[%clk 0:00:08.3]} 57. Bxf5
{[%clk 0:00:19]} 57... gxf5 {[%clk 0:00:09.2]} 58. g6 {[%clk 0:00:19.9]} 58...
Bf8 {[%clk 0:00:09]} 59. g7 {[%clk 0:00:16.9]} 59... Bxg7 {[%clk 0:00:09]} 60.
Bxg7 {[%clk 0:00:17.8]} 60... Ke7 {[%clk 0:00:08.5]} 61. Be5 {[%clk 0:00:17.4]}
61... Kxe6 {[%clk 0:00:08.8]} 62. Bh2 {[%clk 0:00:17.3]} 62... Kd5 {[%clk
0:00:09.2]} 63. Kb4 {[%clk 0:00:17.6]} 63... Ke4 {[%clk 0:00:10.1]} 64. Kxb5
{[%clk 0:00:17.8]} 64... Kf3 {[%clk 0:00:08.9]} 65. Kc4 {[%clk 0:00:17.6]} 65...
Kg2 {[%clk 0:00:07.3]} 66. Bf4 {[%clk 0:00:17.5]} 66... Kf3 {[%clk 0:00:04.2]}
67. Bh2 {[%clk 0:00:16.5]} 67... Ke4 {[%clk 0:00:04.5]} 68. Kc3 {[%clk
0:00:16.3]} 68... Ke3 {[%clk 0:00:04.4]} 69. Kc2 {[%clk 0:00:15.5]} 69... f4
{[%clk 0:00:04.3]} 70. Kd1 {[%clk 0:00:14.8]} 70... f3 {[%clk 0:00:02.6]} 71.
Ke1 {[%clk 0:00:14.9]} 71... h3 {[%clk 0:00:02.3]} 72. Kf1 {[%clk 0:00:14.8]}
72... f2 {[%clk 0:00:02.6]} 73. Bg3 {[%clk 0:00:14.3]} 73... Kf3 {[%clk
0:00:03.3]} 74. Bh2 {[%clk 0:00:15.2]} 74... Ke3 {[%clk 0:00:02.8]} 75. Bb8
{[%clk 0:00:14.8]} 75... Kf3 {[%clk 0:00:03.7]} 76. Bh2 {[%clk 0:00:14.1]} 76...
Ke3 {[%clk 0:00:03.6]} 1/2-1/2

[Event "*** Titled Tuesday Blitz"]
[Site "Chess.com"]
[Date "2020.04.28"]
[Round "5"]
[White "putra48"]
[Black "Alexander_Moskalenko"]
[Result "1/2-1/2"]
[WhiteElo "2615"]
[BlackElo "2868"]
[TimeControl "180+1"]
[EndTime "10:57:40 PDT"]
[Termination "Game drawn by agreement"]

1. e4 {[%clk 0:03:00]} 1... c6 {[%clk 0:02:58.4]} 2. d4 {[%clk 0:02:59.9]} 2...
d5 {[%clk 0:02:59.3]} 3. Nc3 {[%clk 0:03:00.8]} 3... dxe4 {[%clk 0:02:58.6]} 4.
Nxe4 {[%clk 0:03:01.7]} 4... Nf6 {[%clk 0:02:59.5]} 5. Nxf6+ {[%clk 0:03:01.5]}
5... gxf6 {[%clk 0:03:00.4]} 6. c3 {[%clk 0:03:00.4]} 6... Qd5 {[%clk
0:02:55.2]} 7. Qf3 {[%clk 0:02:55.4]} 7... Qxf3 {[%clk 0:02:46]} 8. Nxf3 {[%clk
0:02:54.9]} 8... Bg4 {[%clk 0:02:46.6]} 9. Nh4 {[%clk 0:02:50.5]} 9... h5 {[%clk
0:02:41.2]} 10. h3 {[%clk 0:02:44.8]} 10... Be6 {[%clk 0:02:41.5]} 11. Bd3
{[%clk 0:02:43.6]} 11... Nd7 {[%clk 0:02:16.9]} 12. O-O {[%clk 0:02:40]} 12...
Nb6 {[%clk 0:02:14.4]} 13. f4 {[%clk 0:02:33.1]} 13... O-O-O {[%clk 0:02:07.8]}
14. f5 {[%clk 0:02:28.2]} 14... Bc4 {[%clk 0:01:59.6]} 15. Bxc4 {[%clk
0:02:24.2]} 15... Nxc4 {[%clk 0:02:00.5]} 16. b3 {[%clk 0:02:25.1]} 16... Nb6
{[%clk 0:01:52.1]} 17. Bb2 {[%clk 0:02:21.3]} 17... Bh6 {[%clk 0:01:30.8]} 18.
Rae1 {[%clk 0:02:19.8]} 18... Kd7 {[%clk 0:01:27.2]} 19. Re4 {[%clk 0:02:15.2]}
19... Rhg8 {[%clk 0:01:23.4]} 20. Rfe1 {[%clk 0:02:12.5]} 20... Rde8 {[%clk
0:01:24]} 21. c4 {[%clk 0:02:11.5]} 21... Nc8 {[%clk 0:01:22.3]} 22. d5 {[%clk
0:01:35.8]} 22... cxd5 {[%clk 0:01:10.6]} 23. Rd4 {[%clk 0:01:35.4]} 23... Nd6
{[%clk 0:01:11.5]} 24. Rxd5 {[%clk 0:01:35.5]} 24... Kc6 {[%clk 0:01:00.4]} 25.
Ba3 {[%clk 0:01:28.5]} 25... Bg5 {[%clk 0:00:57.3]} 26. Nf3 {[%clk 0:01:28.4]}
26... Bf4 {[%clk 0:00:52]} 27. Nd4+ {[%clk 0:00:59.2]} 27... Kc7 {[%clk
0:00:51.6]} 28. c5 {[%clk 0:00:59.3]} 28... Nc8 {[%clk 0:00:51.2]} 29. Re4
{[%clk 0:00:52.1]} 29... Be5 {[%clk 0:00:47.6]} 30. Nf3 {[%clk 0:00:51.2]} 30...
e6 {[%clk 0:00:48]} 31. fxe6 {[%clk 0:00:49.6]} 31... fxe6 {[%clk 0:00:48.9]}
32. Rd1 {[%clk 0:00:47.7]} 32... Bg3 {[%clk 0:00:48.7]} 33. Nd4 {[%clk
0:00:45.5]} 33... e5 {[%clk 0:00:45.7]} 34. Nf5 {[%clk 0:00:44.5]} 34... Bf4
{[%clk 0:00:38.6]} 35. Bc1 {[%clk 0:00:42.7]} 35... Bxc1 {[%clk 0:00:37.2]} 36.
Rxc1 {[%clk 0:00:43.6]} 36... Rd8 {[%clk 0:00:38.1]} 37. Re2 {[%clk 0:00:36.3]}
37... Rd3 {[%clk 0:00:37.3]} 38. Kh2 {[%clk 0:00:35.5]} 38... a5 {[%clk
0:00:37.1]} 39. Rf1 {[%clk 0:00:34.9]} 39... Kd7 {[%clk 0:00:32.1]} 40. Ne3
{[%clk 0:00:31.5]} 40... Ke6 {[%clk 0:00:30.7]} 41. Nc4 {[%clk 0:00:29.3]} 41...
a4 {[%clk 0:00:29.1]} 42. Ref2 {[%clk 0:00:29.2]} 42... Rg6 {[%clk 0:00:27.8]}
43. Nd2 {[%clk 0:00:21.1]} 43... f5 {[%clk 0:00:22.5]} 44. bxa4 {[%clk
0:00:18.2]} 44... Ne7 {[%clk 0:00:20.6]} 45. Nf3 {[%clk 0:00:17]} 45... e4
{[%clk 0:00:20.7]} 46. Nh4 {[%clk 0:00:17.1]} 46... Rf6 {[%clk 0:00:20.2]} 47.
Rb2 {[%clk 0:00:15.8]} 47... Rd7 {[%clk 0:00:12.7]} 48. a5 {[%clk 0:00:15.7]}
48... Nc6 {[%clk 0:00:12.1]} 49. Rb6 {[%clk 0:00:14.8]} 49... Ke5 {[%clk
0:00:11.8]} 50. Re1 {[%clk 0:00:11.9]} 50... f4 {[%clk 0:00:10.7]} 51. Nf3+
{[%clk 0:00:11.8]} 51... Kf5 {[%clk 0:00:10.7]} 52. Nh4+ {[%clk 0:00:06.9]}
52... Kg5 {[%clk 0:00:11]} 53. Rxe4 {[%clk 0:00:05.6]} 53... Kxh4 {[%clk
0:00:10.5]} 54. g3+ {[%clk 0:00:05.1]} 54... Kg5 {[%clk 0:00:10.8]} 55. gxf4+
{[%clk 0:00:05.1]} 55... Rxf4 {[%clk 0:00:11]} 56. Rxf4 {[%clk 0:00:05.1]} 56...
Kxf4 {[%clk 0:00:11.9]} 57. a6 {[%clk 0:00:06]} 57... Rd2+ {[%clk 0:00:04.4]}
58. Kg1 {[%clk 0:00:06]} 58... Rxa2 {[%clk 0:00:04.7]} 59. axb7 {[%clk 0:00:06]}
59... Nb8 {[%clk 0:00:05.1]} 60. Rh6 {[%clk 0:00:05.5]} 60... Rc2 {[%clk
0:00:04.3]} 61. Rxh5 {[%clk 0:00:05.3]} 61... Kg3 {[%clk 0:00:04.7]} 62. Kf1
{[%clk 0:00:05.5]} 62... Kf3 {[%clk 0:00:04.9]} 63. Rf5+ {[%clk 0:00:05.8]}
63... Ke4 {[%clk 0:00:04.9]} 64. Rf8 {[%clk 0:00:06]} 64... Nd7 {[%clk
0:00:04.7]} 65. b8=Q {[%clk 0:00:05.6]} 65... Nxb8 {[%clk 0:00:05.3]} 66. Rxb8
{[%clk 0:00:06.5]} 66... Rxc5 {[%clk 0:00:06]} 67. Kg2 {[%clk 0:00:06.3]} 67...
Kf4 {[%clk 0:00:05.9]} 68. Rb4+ {[%clk 0:00:06.1]} 68... Kg5 {[%clk 0:00:05.7]}
69. Rg4+ {[%clk 0:00:06.5]} 69... Kh5 {[%clk 0:00:05.1]} 1/2-1/2

[Event "*** Titled Tuesday Blitz"]
[Site "Chess.com"]
[Date "2020.04.28"]
[Round "5"]
[White "Aureliano-Buendia"]
[Black "TST2014"]
[Result "1-0"]
[WhiteElo "2430"]
[BlackElo "2602"]
[TimeControl "180+1"]
[EndTime "10:57:41 PDT"]
[Termination "Aureliano-Buendia won by checkmate"]

1. d4 {[%clk 0:03:00.7]} 1... Nf6 {[%clk 0:02:59.6]} 2. c4 {[%clk 0:03:00]} 2...
g6 {[%clk 0:02:58.9]} 3. Nc3 {[%clk 0:02:59.5]} 3... Bg7 {[%clk 0:02:59.4]} 4.
e4 {[%clk 0:02:59.3]} 4... O-O {[%clk 0:03:00.3]} 5. Be2 {[%clk 0:02:59.9]} 5...
d6 {[%clk 0:03:00.8]} 6. Bg5 {[%clk 0:03:00.4]} 6... h6 {[%clk 0:03:00.4]} 7.
Be3 {[%clk 0:03:00.7]} 7... e5 {[%clk 0:02:59.7]} 8. d5 {[%clk 0:03:01]} 8... c6
{[%clk 0:02:59.7]} 9. h4 {[%clk 0:02:56.1]} 9... h5 {[%clk 0:02:58.5]} 10. Nh3
{[%clk 0:02:47.8]} 10... Ng4 {[%clk 0:02:58]} 11. Bxg4 {[%clk 0:02:46.1]} 11...
Bxg4 {[%clk 0:02:57.6]} 12. f3 {[%clk 0:02:41.1]} 12... Bc8 {[%clk 0:02:43]} 13.
Nf2 {[%clk 0:02:23.7]} 13... f5 {[%clk 0:02:40]} 14. Qd3 {[%clk 0:02:12.5]}
14... f4 {[%clk 0:02:36.5]} 15. Bd2 {[%clk 0:02:11.1]} 15... Bf6 {[%clk
0:02:32.2]} 16. O-O-O {[%clk 0:02:07.3]} 16... Bxh4 {[%clk 0:02:32.1]} 17. Be1
{[%clk 0:02:00.1]} 17... c5 {[%clk 0:02:30.3]} 18. Ne2 {[%clk 0:01:29.1]} 18...
a6 {[%clk 0:02:24.1]} 19. Nh3 {[%clk 0:01:21.3]} 19... Bxe1 {[%clk 0:02:22.3]}
20. Rdxe1 {[%clk 0:01:20.8]} 20... b5 {[%clk 0:02:23.2]} 21. Reg1 {[%clk
0:01:03.5]} 21... bxc4 {[%clk 0:02:17.4]} 22. Qxc4 {[%clk 0:01:03]} 22... a5
{[%clk 0:02:18.1]} 23. g3 {[%clk 0:00:58.7]} 23... Ba6 {[%clk 0:02:15.9]} 24.
Qc2 {[%clk 0:00:58.7]} 24... Bxe2 {[%clk 0:02:07]} 25. Qxe2 {[%clk 0:00:58.3]}
25... Qf6 {[%clk 0:01:54.9]} 26. gxf4 {[%clk 0:00:55.3]} 26... exf4 {[%clk
0:01:55.8]} 27. Rxg6+ {[%clk 0:00:54.8]} 27... Qxg6 {[%clk 0:01:56]} 28. Rg1
{[%clk 0:00:55.3]} 28... Qxg1+ {[%clk 0:01:56.6]} 29. Nxg1 {[%clk 0:00:55.7]}
29... Nd7 {[%clk 0:01:56.1]} 30. Qh2 {[%clk 0:00:54]} 30... Ne5 {[%clk
0:01:53.2]} 31. Qxh5 {[%clk 0:00:53.2]} 31... Rf7 {[%clk 0:01:48.6]} 32. Nh3
{[%clk 0:00:50.3]} 32... Raa7 {[%clk 0:01:27.8]} 33. Kc2 {[%clk 0:00:42.1]}
33... Rh7 {[%clk 0:01:14.1]} 34. Qe8+ {[%clk 0:00:41.4]} 34... Kg7 {[%clk
0:01:14.7]} 35. Nxf4 {[%clk 0:00:40.2]} 35... Nxf3 {[%clk 0:01:06.1]} 36. Nh5+
{[%clk 0:00:35.3]} 36... Kh6 {[%clk 0:01:04.4]} 37. Qf8+ {[%clk 0:00:28.5]}
37... Kxh5 {[%clk 0:01:03.3]} 38. Qxf3+ {[%clk 0:00:29]} 38... Kg6 {[%clk
0:00:55.4]} 39. Qg3+ {[%clk 0:00:29.2]} 39... Kh5 {[%clk 0:00:55.4]} 40. Qxd6
{[%clk 0:00:30.1]} 40... Kg4 {[%clk 0:00:55.7]} 41. e5 {[%clk 0:00:28.4]} 41...
Kf3 {[%clk 0:00:52.3]} 42. e6 {[%clk 0:00:27.1]} 42... Ke4 {[%clk 0:00:52.7]}
43. Qc6 {[%clk 0:00:22.4]} 43... Rac7 {[%clk 0:00:50]} 44. Qd6 {[%clk
0:00:19.4]} 44... c4 {[%clk 0:00:47.5]} 45. a4 {[%clk 0:00:15.9]} 45... Rhg7
{[%clk 0:00:47]} 46. Kc3 {[%clk 0:00:14.8]} 46... Rh7 {[%clk 0:00:44.9]} 47. Kc2
{[%clk 0:00:13.2]} 47... Rb7 {[%clk 0:00:42.6]} 48. Qc5 {[%clk 0:00:11.5]} 48...
Rh2+ {[%clk 0:00:40.2]} 49. Kc3 {[%clk 0:00:11.8]} 49... Rb3+ {[%clk 0:00:37.7]}
50. Kxc4 {[%clk 0:00:11.5]} 50... Rbxb2 {[%clk 0:00:31.4]} 51. Qd4+ {[%clk
0:00:11.1]} 51... Kf5 {[%clk 0:00:31.5]} 52. Qd3+ {[%clk 0:00:10.8]} 52... Kf6
{[%clk 0:00:31.1]} 53. Kc5 {[%clk 0:00:10.4]} 53... Rhd2 {[%clk 0:00:28.3]} 54.
Qf3+ {[%clk 0:00:09.9]} 54... Ke5 {[%clk 0:00:28.1]} 55. Qe3+ {[%clk 0:00:10.4]}
55... Kf6 {[%clk 0:00:28]} 56. Kd6 {[%clk 0:00:10.7]} 56... Re2 {[%clk
0:00:24.7]} 57. Qf4+ {[%clk 0:00:10.8]} 57... Kg6 {[%clk 0:00:24.3]} 58. Qf7+
{[%clk 0:00:11]} 58... Kg5 {[%clk 0:00:24.8]} 59. e7 {[%clk 0:00:11.2]} 59...
Rb6+ {[%clk 0:00:24.6]} 60. Kc7 {[%clk 0:00:11.3]} 60... Rf6 {[%clk 0:00:22.4]}
61. Qg7+ {[%clk 0:00:11.1]} 61... Kf5 {[%clk 0:00:22.4]} 62. d6 {[%clk
0:00:11.6]} 62... Rc2+ {[%clk 0:00:21.8]} 63. Kd7 {[%clk 0:00:11.9]} 63... Rd2
{[%clk 0:00:22.3]} 64. Qxf6+ {[%clk 0:00:10.9]} 64... Kxf6 {[%clk 0:00:21.9]}
65. e8=Q {[%clk 0:00:11.8]} 65... Ra2 {[%clk 0:00:20.5]} 66. Qd8+ {[%clk
0:00:12.2]} 66... Ke5 {[%clk 0:00:19.7]} 67. Qxa5+ {[%clk 0:00:13.1]} 67... Kd4
{[%clk 0:00:16.8]} 68. Kd8 {[%clk 0:00:13.3]} 68... Kc4 {[%clk 0:00:16.1]} 69.
d7 {[%clk 0:00:13.6]} 69... Kb3 {[%clk 0:00:16.6]} 70. Qb5+ {[%clk 0:00:13.8]}
70... Ka3 {[%clk 0:00:16.5]} 71. a5 {[%clk 0:00:13.9]} 71... Rh2 {[%clk
0:00:14.8]} 72. a6 {[%clk 0:00:14.2]} 72... Rh8+ {[%clk 0:00:14.4]} 73. Kc7
{[%clk 0:00:14.6]} 73... Ra8 {[%clk 0:00:14.1]} 74. Kb7 {[%clk 0:00:13]} 74...
Rd8 {[%clk 0:00:12.6]} 75. a7 {[%clk 0:00:13.3]} 75... Ka2 {[%clk 0:00:12.5]}
76. a8=Q+ {[%clk 0:00:13.4]} 76... Rxa8 {[%clk 0:00:12.7]} 77. Kxa8 {[%clk
0:00:14.3]} 77... Ka3 {[%clk 0:00:13.4]} 78. d8=Q {[%clk 0:00:14.6]} 78... Ka2
{[%clk 0:00:14.3]} 79. Qda5# {[%clk 0:00:14.7]} 1-0

[Event "*** Titled Tuesday Blitz"]
[Site "Chess.com"]
[Date "2020.04.28"]
[Round "5"]
[White "MilanovicDan"]
[Black "Volovier"]
[Result "1/2-1/2"]
[WhiteElo "2476"]
[BlackElo "2619"]
[TimeControl "180+1"]
[EndTime "10:57:45 PDT"]
[Termination "Game drawn by repetition"]

1. d4 {[%clk 0:03:00.9]} 1... d5 {[%clk 0:02:53]} 2. c4 {[%clk 0:03:00.8]} 2...
c6 {[%clk 0:02:51.1]} 3. Nc3 {[%clk 0:02:58.1]} 3... Nf6 {[%clk 0:02:51.2]} 4.
e3 {[%clk 0:02:57.9]} 4... Bf5 {[%clk 0:02:48.5]} 5. Qb3 {[%clk 0:02:51.6]} 5...
Qb6 {[%clk 0:02:45.8]} 6. Nf3 {[%clk 0:02:51.1]} 6... e6 {[%clk 0:02:41]} 7. Bd2
{[%clk 0:02:47.9]} 7... Nbd7 {[%clk 0:02:38.4]} 8. Be2 {[%clk 0:02:47.1]} 8...
Bd6 {[%clk 0:02:35.7]} 9. c5 {[%clk 0:02:45.9]} 9... Qxb3 {[%clk 0:02:34.6]} 10.
axb3 {[%clk 0:02:46.2]} 10... Bc7 {[%clk 0:02:34.2]} 11. b4 {[%clk 0:02:46.5]}
11... O-O {[%clk 0:02:32]} 12. b5 {[%clk 0:02:45]} 12... e5 {[%clk 0:02:26.1]}
13. O-O {[%clk 0:02:39.9]} 13... e4 {[%clk 0:02:23.1]} 14. Ne1 {[%clk
0:02:38.3]} 14... h5 {[%clk 0:02:13]} 15. Nc2 {[%clk 0:02:37.2]} 15... Bg4
{[%clk 0:02:08.3]} 16. f3 {[%clk 0:02:21.7]} 16... exf3 {[%clk 0:02:06]} 17.
gxf3 {[%clk 0:02:21.5]} 17... Bh3 {[%clk 0:02:06.2]} 18. Rfb1 {[%clk 0:02:20.5]}
18... Rfe8 {[%clk 0:02:05.8]} 19. bxc6 {[%clk 0:02:16.6]} 19... bxc6 {[%clk
0:02:06.7]} 20. Nb4 {[%clk 0:02:16.7]} 20... Nb8 {[%clk 0:02:03.6]} 21. Na6
{[%clk 0:02:15.7]} 21... Nxa6 {[%clk 0:02:00.9]} 22. Rxa6 {[%clk 0:02:16.2]}
22... Re6 {[%clk 0:02:00.2]} 23. b4 {[%clk 0:02:13.8]} 23... h4 {[%clk
0:01:55.8]} 24. b5 {[%clk 0:01:49.5]} 24... cxb5 {[%clk 0:01:53.4]} 25. Rxe6
{[%clk 0:01:45.6]} 25... fxe6 {[%clk 0:01:54.3]} 26. Nxb5 {[%clk 0:01:43.4]}
26... Bd8 {[%clk 0:01:50.8]} 27. Ra1 {[%clk 0:01:42.6]} 27... a5 {[%clk
0:01:48.9]} 28. Be1 {[%clk 0:01:15.6]} 28... g5 {[%clk 0:01:46.8]} 29. Bd3
{[%clk 0:01:09.4]} 29... Bf5 {[%clk 0:01:44.4]} 30. Bxf5 {[%clk 0:00:49.7]}
30... exf5 {[%clk 0:01:45.3]} 31. Nd6 {[%clk 0:00:49.8]} 31... Bc7 {[%clk
0:01:43.1]} 32. Nxf5 {[%clk 0:00:49]} 32... Kf7 {[%clk 0:01:42.9]} 33. Ra4
{[%clk 0:00:40.8]} 33... Ke6 {[%clk 0:01:36.2]} 34. Ng7+ {[%clk 0:00:39]} 34...
Kf7 {[%clk 0:01:33.7]} 35. Nf5 {[%clk 0:00:38.5]} 35... Ke6 {[%clk 0:01:33]} 36.
Nd6 {[%clk 0:00:31.7]} 36... Rb8 {[%clk 0:01:26.7]} 37. Ra2 {[%clk 0:00:22.7]}
37... Rb1 {[%clk 0:01:24.2]} 38. Kf2 {[%clk 0:00:22.8]} 38... g4 {[%clk
0:01:23.2]} 39. Bxa5 {[%clk 0:00:19.9]} 39... Bxd6 {[%clk 0:01:15.9]} 40. cxd6
{[%clk 0:00:19]} 40... Kxd6 {[%clk 0:01:14.7]} 41. Bd8 {[%clk 0:00:17.7]} 41...
Ke6 {[%clk 0:01:11.1]} 42. Ra6+ {[%clk 0:00:16.7]} 42... Kd7 {[%clk 0:01:07.2]}
43. Bxf6 {[%clk 0:00:16.7]} 43... Rb2+ {[%clk 0:01:05.8]} 44. Kf1 {[%clk
0:00:16.6]} 44... Rb1+ {[%clk 0:01:04.1]} 45. Kf2 {[%clk 0:00:15.6]} 45... Rb2+
{[%clk 0:01:01.4]} 46. Ke1 {[%clk 0:00:15.4]} 46... Rb1+ {[%clk 0:00:59.2]} 47.
Kd2 {[%clk 0:00:14.8]} 47... g3 {[%clk 0:00:57.6]} 48. hxg3 {[%clk 0:00:14.8]}
48... h3 {[%clk 0:00:57.1]} 49. Ra7+ {[%clk 0:00:14.8]} 49... Ke6 {[%clk
0:00:55]} 50. Rh7 {[%clk 0:00:14.5]} 50... h2 {[%clk 0:00:52.7]} 51. Rxh2 {[%clk
0:00:09.5]} 51... Rb2+ {[%clk 0:00:50.7]} 52. Kd3 {[%clk 0:00:09.8]} 52... Rxh2
{[%clk 0:00:49.9]} 53. Be5 {[%clk 0:00:07.1]} 53... Rf2 {[%clk 0:00:48.1]} 54.
f4 {[%clk 0:00:06.1]} 54... Kf5 {[%clk 0:00:45.6]} 55. Bd6 {[%clk 0:00:05.6]}
55... Rg2 {[%clk 0:00:43.6]} 56. Be5 {[%clk 0:00:03.7]} 56... Rxg3 {[%clk
0:00:42.1]} 57. Bd6 {[%clk 0:00:03.9]} 57... Rg6 {[%clk 0:00:39.1]} 58. Be5
{[%clk 0:00:03.8]} 58... Rc6 {[%clk 0:00:36.7]} 59. Kd2 {[%clk 0:00:01.2]} 59...
Ke4 {[%clk 0:00:35.3]} 60. Bg7 {[%clk 0:00:01.4]} 60... Rg6 {[%clk 0:00:33]} 61.
Be5 {[%clk 0:00:01.9]} 61... Rg2+ {[%clk 0:00:30.7]} 62. Kc3 {[%clk 0:00:02.5]}
62... Kxe3 {[%clk 0:00:27.8]} 63. Kb4 {[%clk 0:00:03]} 63... Ke4 {[%clk
0:00:26.9]} 64. Kc5 {[%clk 0:00:02.9]} 64... Ra2 {[%clk 0:00:25.6]} 65. Kd6
{[%clk 0:00:03.4]} 65... Ra1 {[%clk 0:00:23.5]} 66. Kc5 {[%clk 0:00:03.8]} 66...
Ra6 {[%clk 0:00:21.2]} 67. Kb5 {[%clk 0:00:03.7]} 67... Ra8 {[%clk 0:00:19]} 68.
Kc5 {[%clk 0:00:04.2]} 68... Rg8 {[%clk 0:00:17]} 69. Kd6 {[%clk 0:00:04.4]}
69... Rg6+ {[%clk 0:00:16.9]} 70. Kc5 {[%clk 0:00:04.4]} 70... Rg8 {[%clk
0:00:14.9]} 71. Kd6 {[%clk 0:00:04.3]} 71... Rg6+ {[%clk 0:00:14.7]} 72. Kc5
{[%clk 0:00:04.5]} 72... Rg8 {[%clk 0:00:14.3]} 1/2-1/2